bitfinex/quotes_SOLUSD_20250802
["timestamp","ask_amount","ask_price","bid_price","bid_amount"]
[1754152101583,10.74078901,161.72,161.67,0.72]
[1754152101810,0.69,161.71,161.68,10.74078901]
[1754152102218,44.4,161.7,161.68,10.74078901]
[1754152103225,44.4,161.7,161.67,10.74078901]
[1754152103935,44.4,161.7,161.68,10.74078901]
[1754152104303,44.4,161.7,161.67,10.74078901]
[1754152104523,45.09,161.7,161.67,10.74078901]
[1754152105732,45.09,161.7,161.62,159.5]
[1754152105733,0.69,161.69,161.66,10.74078901]
[1754152106933,0.69,161.68,161.64,10.74078901]
[1754152107111,45.11,161.67,161.64,10.74078901]
[1754152107307,0.69,161.66,161.62,10.74078901]
[1754152107499,44.42,161.67,161.64,10.74078901]
[1754152107925,45.11,161.67,161.64,10.74078901]
[1754152108312,0.69,161.66,161.63,10.74078901]
[1754152108533,44.42,161.67,161.64,10.74078901]
[1754152108903,44.42,161.67,161.58,44.42]
[1754152108904,44.42,161.67,161.66,10.74078901]
[1754152109114,44.42,161.67,161.65,0.72]
[1754152109115,44.42,161.67,161.65,10.74078901]
[1754152109508,44.42,161.67,161.64,0.72]
[1754152109834,45.11,161.67,161.64,10.74078901]
[1754152110236,45.11,161.67,161.62,0.72]
[1754152110237,16.78468397,161.65,161.57,89.1]
[1754152110420,16.78468397,161.65,161.61,10.74078901]
[1754152110421,44.42,161.64,161.61,10.74078901]
[1754152110615,0.69,161.63,161.54,133.58]
[1754152110820,0.69,161.63,161.6,10.74078901]
[1754152112312,0.69,161.63,161.62,0.06]
[1754152112728,44.42,161.64,161.62,0.06]
[1754152113311,45.1,161.64,161.62,0.06]
[1754152114340,44.42,161.64,161.63,10.74078901]
[1754152114539,44.42,161.66,161.63,11.40078901]
[1754152114717,44.42,161.66,161.63,10.74078901]
[1754152115014,44.42,161.66,161.63,6.44400628]
[1754152115418,16.78468397,161.67,161.64,6.44400628]
[1754152115618,44.42,161.66,161.64,6.44400628]
[1754152116227,17.46468397,161.67,161.64,6.44400628]
[1754152116424,44.42,161.66,161.64,6.44400628]
[1754152117040,45.1,161.66,161.64,10.73956582]
[1754152117743,44.42,161.66,161.64,10.73956582]
[1754152117914,3.22945848,161.69,161.65,11.39956582]
[1754152118242,44.42,161.68,161.66,10.73956582]
[1754152118625,45.1,161.68,161.66,10.73956582]
[1754152118822,44.42,161.68,161.66,10.73956582]
[1754152119414,45.1,161.68,161.66,10.73956582]
[1754152120116,0.68,161.67,161.64,10.73956582]
[1754152120338,0.68,161.66,161.64,10.73956582]
[1754152120547,16.78468397,161.67,161.62,89.16]
[1754152120717,0.68,161.65,161.62,99.89956582]
[1754152121075,44.42,161.65,161.63,10.73956582]
[1754152121553,44.42,161.65,161.64,11.39956582]
[1754152121712,44.42,161.65,161.64,10.73956582]
[1754152121919,44.42,161.65,161.63,10.73956582]
[1754152125463,45.1,161.65,161.63,10.73956582]
[1754152125830,44.42,161.65,161.63,10.73956582]
[1754152126862,16.78468397,161.68,161.64,11.39956582]
[1754152127050,44.42,161.67,161.66,10.73956582]
[1754152127447,36.73956582,161.71,161.66,11.39956582]
[1754152127448,26.0,161.71,161.66,11.39956582]
[1754152127646,16.78468397,161.71,161.69,10.73956582]
[1754152127971,45.1,161.7,161.68,10.73956582]
[1754152128753,44.42,161.7,161.69,10.73956582]
[1754152129778,0.68,161.75,161.69,11.39956582]
[1754152129940,0.68,161.75,161.74,10.73956582]
[1754152129941,61.20468397,161.75,161.74,10.73956582]
[1754152130138,61.88468397,161.75,161.73,10.73956582]
[1754152131643,0.68,161.74,161.72,10.73956582]
[1754152131846,0.68,161.73,161.71,10.73956582]
[1754152132168,0.68,161.72,161.69,10.73956582]
[1754152132373,16.78468397,161.72,161.7,10.73956582]
[1754152132583,44.42,161.73,161.68,0.66]
[1754152132872,17.46468397,161.72,161.68,10.73956582]
[1754152133087,17.46468397,161.72,161.65,0.66]
[1754152133088,55.83956582,161.71,161.66,10.73956582]
[1754152133259,55.15956582,161.71,161.66,10.73956582]
[1754152133444,0.68,161.7,161.66,10.73956582]
[1754152133642,55.15956582,161.71,161.66,10.73956582]
[1754152133643,45.1,161.69,161.66,10.73956582]
[1754152133845,0.68,161.68,161.65,10.73956582]
[1754152134040,44.42,161.67,161.65,10.73956582]
[1754152134349,0.68,161.66,161.64,10.73956582]
[1754152134578,44.42,161.67,161.64,10.73956582]
[1754152134880,45.1,161.67,161.64,10.73956582]
[1754152135247,44.42,161.67,161.64,11.39956582]
[1754152135446,0.03,161.7,161.66,10.73956582]
[1754152135670,44.42,161.68,161.66,10.73956582]
[1754152136347,0.68,161.67,161.64,10.73956582]
[1754152136546,0.68,161.66,161.64,10.73956582]
[1754152136957,16.78468397,161.67,161.63,10.79956582]
[1754152137258,17.46468397,161.67,161.63,10.79956582]
[1754152137560,17.46468397,161.67,161.64,10.73956582]
[1754152138256,44.42,161.68,161.65,10.73956582]
[1754152138461,44.42,161.68,161.65,11.39956582]
[1754152138679,44.42,161.68,161.66,10.73956582]
[1754152138878,44.42,161.68,161.66,7.10156926]
[1754152139049,44.42,161.68,161.65,6.44156926]
[1754152139249,45.1,161.68,161.65,6.44156926]
[1754152139571,44.42,161.68,161.66,6.44156926]
[1754152142052,0.69,161.67,161.65,6.44156926]
[1754152142349,44.42,161.68,161.63,0.06]
[1754152142350,0.69,161.66,161.63,0.06]
[1754152142667,0.69,161.65,161.63,6.50156926]
[1754152143359,17.47468397,161.67,161.63,6.50156926]
[1754152143560,17.47468397,161.67,161.64,6.44156926]
[1754152143762,44.42,161.68,161.65,6.44156926]
[1754152144074,44.42,161.68,161.67,6.44156926]
[1754152144281,44.45,161.7,161.67,6.44156926]
[1754152144463,44.45,161.7,161.68,6.44156926]
[1754152145070,16.78468397,161.68,161.65,6.44156926]
[1754152145276,0.69,161.67,161.65,6.44156926]
[1754152145477,45.11,161.67,161.65,6.44156926]
[1754152145980,45.11,161.67,161.64,6.44156926]
[1754152146687,0.69,161.66,161.64,6.44156926]
[1754152148286,44.42,161.67,161.64,6.44156926]
[1754152148455,45.11,161.67,161.64,6.44156926]
[1754152148873,45.11,161.67,161.65,6.44156926]
[1754152149070,44.42,161.67,161.66,6.44156926]
[1754152149488,16.78468397,161.68,161.66,6.44156926]
[1754152149701,0.03,161.7,161.67,6.44156926]
[1754152149866,61.23468397,161.7,161.68,6.44156926]
[1754152150692,0.69,161.69,161.65,6.44156926]
[1754152150894,44.42,161.68,161.64,6.44156926]
[1754152151386,0.69,161.67,161.64,6.44156926]
[1754152152262,0.69,161.66,161.63,0.06]
[1754152152471,0.69,161.66,161.63,6.50156926]
[1754152152777,51.55156926,161.65,161.63,0.06]
[1754152152984,45.11,161.65,161.63,0.06]
[1754152153364,0.69,161.64,161.63,0.06]
[1754152153765,44.42,161.65,161.63,6.50156926]
[1754152154503,7.13156926,161.68,161.64,7.09156926]
[1754152154504,44.4,161.68,161.64,7.09156926]
[1754152154798,44.4,161.68,161.65,0.65]
[1754152155005,44.4,161.68,161.66,6.44156926]
[1754152155214,45.09,161.68,161.66,6.44156926]
[1754152156475,0.69,161.67,161.63,0.06]
[1754152156812,4.13380942,161.67,161.64,6.44156926]
[1754152157101,0.69,161.66,161.64,6.44156926]
[1754152157607,4.82380942,161.67,161.64,6.44156926]
[1754152157763,4.13380942,161.67,161.64,6.44156926]
[1754152157972,4.13380942,161.67,161.66,6.44156926]
[1754152158188,44.4,161.68,161.66,6.44156926]
[1754152159002,44.4,161.68,161.67,6.44156926]
[1754152159175,48.53455275,161.68,161.67,6.44156926]
[1754152159372,49.22455275,161.68,161.67,6.44156926]
[1754152160083,49.22455275,161.68,161.66,6.44156926]
[1754152160298,45.09,161.68,161.66,6.44156926]
[1754152161498,16.78468397,161.66,161.63,0.06]
[1754152161665,23.22625323,161.64,161.63,0.06]
[1754152162069,16.78468397,161.64,161.63,0.06]
[1754152162291,17.47468397,161.64,161.63,0.06]
[1754152162697,28.0481295,161.64,161.63,0.06]
[1754152163790,21.60656024,161.64,161.63,0.06]
[1754152164297,17.47468397,161.64,161.63,0.06]
[1754152164688,21.60521658,161.64,161.63,0.06]
[1754152165398,28.04678584,161.64,161.63,0.06]
[1754152166503,21.60521658,161.64,161.63,0.06]
[1754152167903,17.47468397,161.64,161.63,0.06]
[1754152169078,0.69,161.67,161.63,0.06]
[1754152169398,44.42,161.66,161.64,6.44156926]
[1754152169614,44.42,161.66,161.64,7.09156926]
[1754152169911,44.42,161.66,161.65,6.44156926]
[1754152170124,10.39007329,161.7,161.65,7.09156926]
[1754152170296,48.54866206,161.69,161.67,6.44156926]
[1754152170488,44.42,161.69,161.67,6.44156926]
[1754152171207,23.88625323,161.68,161.63,0.06]
[1754152171408,54.99060721,161.67,161.63,6.50156926]
[1754152171727,4.78903795,161.66,161.63,6.50156926]
[1754152171926,44.42,161.65,161.63,6.50156926]
[1754152172284,44.42,161.65,161.63,7.22156926]
[1754152173404,44.42,161.65,161.63,0.06]
[1754152174290,0.66,161.64,161.63,0.06]
[1754152174822,17.44468397,161.64,161.63,0.06]
[1754152176527,28.01654237,161.64,161.63,0.06]
[1754152178023,63.17435301,161.64,161.63,0.06]
[1754152178216,56.73278375,161.64,161.63,0.06]
[1754152178401,63.17435301,161.64,161.63,0.06]
[1754152180091,68.29242624,161.64,161.63,0.06]
[1754152181593,42.29242624,161.64,161.63,0.06]
[1754152181924,25.94249461,161.63,161.62,0.06]
[1754152182109,86.75040618,161.63,161.62,0.06]
[1754152182296,86.09040618,161.63,161.62,0.06]
[1754152182496,86.75040618,161.63,161.62,0.06]
[1754152183228,81.59435301,161.63,161.62,0.06]
[1754152184794,103.19197544,161.63,161.61,0.06]
[1754152185022,41.87549344,161.62,161.61,0.06]
[1754152185232,42.78468397,161.58,161.56,0.06]
[1754152185419,71.77654237,161.57,161.56,0.06]
[1754152185595,37.17435301,161.57,161.56,0.06]
[1754152185808,81.59435301,161.57,161.56,0.06]
[1754152188625,93.64625323,161.57,161.56,0.06]
[1754152190644,98.41427568,161.57,161.56,0.06]
[1754152190797,107.57208632,161.57,161.56,0.06]
[1754152191137,113.28669705,161.57,161.56,0.06]
[1754152194264,102.07710534,161.57,161.56,0.06]
[1754152194560,108.5186746,161.57,161.56,0.06]
[1754152194850,90.4365957,161.57,161.56,0.78]
[1754152195029,96.87816496,161.57,161.56,0.06]
[1754152196117,90.4365957,161.57,161.56,0.06]
[1754152196319,96.87816496,161.57,161.56,0.06]
[1754152198434,96.87816496,161.57,161.56,0.78]
[1754152198634,96.87816496,161.57,161.56,0.06]
[1754152200328,96.87816496,161.57,161.56,0.78]
[1754152200329,90.4365957,161.57,161.56,0.78]
[1754152200530,96.87816496,161.57,161.56,0.06]
[1754152200735,101.48232931,161.57,161.56,0.06]
[1754152200952,110.79857202,161.57,161.56,0.06]
[1754152201845,106.6959756,161.57,161.56,0.06]
[1754152202054,106.0359756,161.57,161.56,0.06]
[1754152202755,99.59440634,161.57,161.56,0.06]
[1754152202963,61.6159756,161.57,161.56,0.06]
[1754152203178,106.0359756,161.57,161.56,0.06]
[1754152203856,106.0359756,161.57,161.56,0.75]
[1754152203857,90.4365957,161.57,161.56,0.75]
[1754152204365,64.4365957,161.57,161.56,0.75]
[1754152204537,61.20468397,161.57,161.56,0.75]
[1754152205539,61.20468397,161.57,161.56,0.06]
[1754152206174,61.20468397,161.57,161.56,0.75]
[1754152207865,61.20468397,161.57,161.56,0.06]
[1754152208065,67.64625323,161.57,161.56,0.06]
[1754152208240,61.20468397,161.57,161.56,0.06]
[1754152209352,61.20468397,161.57,161.56,0.75]
[1754152209548,61.20468397,161.57,161.56,0.06]
[1754152210946,68.35625323,161.57,161.56,0.06]
[1754152211268,67.64625323,161.57,161.56,0.06]
[1754152211478,68.35625323,161.57,161.56,0.06]
[1754152211768,75.69566773,161.57,161.56,0.06]
[1754152212290,75.69547998,161.57,161.56,0.06]
[1754152212445,84.85329062,161.57,161.56,0.06]
[1754152213472,89.984015,161.57,161.56,0.06]
[1754152213640,109.20799652,161.57,161.56,0.06]
[1754152213841,16.78468397,161.55,161.54,0.06]
[1754152214075,87.35373413,161.55,161.54,0.06]
[1754152214242,16.78468397,161.54,161.53,0.2]
[1754152214451,42.78468397,161.52,161.51,0.2]
[1754152214638,42.78468397,161.48,161.47,0.2]
[1754152214856,91.31278497,161.48,161.47,0.2]
[1754152215064,98.46435423,161.48,161.47,0.2]
[1754152215444,97.75435423,161.48,161.47,0.2]
[1754152216267,97.75435423,161.48,161.47,0.89]
[1754152216445,93.64625323,161.48,161.47,0.89]
[1754152216871,93.64625323,161.48,161.47,0.2]
[1754152217069,94.35625323,161.48,161.47,0.2]
[1754152217457,98.46184093,161.48,161.47,0.2]
[1754152218176,91.31027167,161.48,161.47,0.2]
[1754152218481,98.46184093,161.48,161.47,0.2]
[1754152218680,97.75184093,161.48,161.47,0.2]
[1754152223375,98.46184093,161.48,161.47,0.2]
[1754152223582,107.61965157,161.48,161.47,0.2]
[1754152224148,121.46908055,161.48,161.47,0.2]
[1754152224555,123.95378455,161.48,161.47,0.2]
[1754152224950,123.95378455,161.48,161.45,0.06]
[1754152224951,16.78468397,161.47,161.45,0.06]
[1754152225167,48.77294949,161.47,161.45,0.06]
[1754152225360,67.49064981,161.47,161.45,0.06]
[1754152225564,51.04908055,161.47,161.45,0.06]
[1754152225882,61.04908055,161.47,161.45,0.06]
[1754152227296,16.78468397,161.45,161.44,0.06]
[1754152227593,16.78468397,161.41,161.37,0.69]
[1754152227793,16.78468397,161.41,161.36,84.2]
[1754152227794,6.44156926,161.38,161.36,84.2]
[1754152227997,61.22468397,161.37,161.36,84.2]
[1754152228147,67.66625323,161.37,161.36,84.2]
[1754152232067,70.90210331,161.37,161.36,84.2]
[1754152232893,64.46053405,161.37,161.36,84.2]
[1754152233091,70.90210331,161.37,161.36,84.2]
[1754152233950,71.60210331,161.37,161.36,84.2]
[1754152234665,105.84834321,161.37,161.36,84.2]
[1754152234852,115.84834321,161.37,161.36,84.2]
[1754152235077,119.93084701,161.37,161.36,84.2]
[1754152235686,39.70241775,161.37,161.36,83.5411]
[1754152235881,84.14241775,161.37,161.36,83.5411]
[1754152236202,80.05991395,161.37,161.36,82.5411]
[1754152236497,91.28130217,161.37,161.36,82.5411]
[1754152236784,109.92700317,161.37,161.36,82.5411]
[1754152236974,103.48543391,161.37,161.36,82.5411]
[1754152237377,58.34543391,161.37,161.36,82.5411]
[1754152237581,80.05991395,161.37,161.36,82.5411]
[1754152238178,80.75991395,161.37,161.36,82.5411]
[1754152238486,91.27751516,161.37,161.36,82.5411]
[1754152238693,101.27751516,161.37,161.36,82.5411]
[1754152239974,119.88751516,161.37,161.36,82.5411]
[1754152240174,91.27751516,161.37,161.36,82.5411]
[1754152241676,101.27751516,161.37,161.36,58.7711]
[1754152242156,42.78468397,161.33,161.3,0.9]
[1754152242361,6.44156926,161.31,161.3,0.9]
[1754152242866,23.22625323,161.31,161.3,0.2]
[1754152243094,23.22625323,161.31,161.3,0.9]
[1754152244195,26.0,161.33,161.3,0.9]
[1754152244402,44.46,161.32,161.3,7.34156926]
[1754152244608,44.46,161.32,161.3,0.2]
[1754152244767,61.24468397,161.32,161.31,0.7]
[1754152244967,16.78468397,161.31,161.3,0.2]
[1754152245476,23.22625323,161.31,161.3,0.9]
[1754152247618,16.78468397,161.31,161.3,0.9]
[1754152247794,43.74,161.31,161.3,7.34156926]
[1754152247997,9.67741934,161.37,161.3,7.34156926]
[1754152248311,44.46,161.36,161.32,6.44156926]
[1754152248508,18.649178,161.35,161.32,6.44156926]
[1754152248737,50.90156926,161.34,161.3,0.2]
[1754152248893,50.90156926,161.34,161.32,0.7]
[1754152249098,44.46,161.34,161.3,6.64156926]
[1754152249419,61.24468397,161.34,161.33,0.2]
[1754152249582,67.68625323,161.34,161.3,6.64156926]
[1754152249781,6.44156926,161.33,161.3,0.2]
[1754152249983,44.46,161.32,161.3,0.2]
[1754152250402,44.46,161.32,161.3,6.64156926]
[1754152250591,16.78468397,161.34,161.3,6.64156926]
[1754152250910,44.46,161.33,161.3,6.64156926]
[1754152251413,44.46,161.33,161.31,0.34]
[1754152251715,44.46,161.33,161.3,6.64156926]
[1754152251921,6.44156926,161.32,161.3,0.2]
[1754152252108,44.46,161.31,161.3,0.2]
[1754152252824,77.54406387,161.31,161.3,0.2]
[1754152253005,103.54406387,161.31,161.3,0.2]
[1754152253199,77.54406387,161.31,161.3,0.2]
[1754152254334,10.0,161.26,161.19,0.1]
[1754152254634,29.66782249,161.2,161.19,0.1]
[1754152254796,29.66782249,161.2,161.16,5.23382485]
[1754152254797,49.22625323,161.17,161.16,5.23382485]
[1754152254998,98.46230739,161.17,161.16,5.23382485]
[1754152255218,63.16011803,161.17,161.16,5.23382485]
[1754152255432,35.15781064,161.17,161.16,5.23382485]
[1754152255620,16.78468397,161.2,161.16,12.21539411]
[1754152255927,44.46,161.19,161.17,0.54]
[1754152256310,42.78468397,161.17,161.16,5.23382485]
[1754152256500,93.68625323,161.17,161.16,5.23382485]
[1754152256824,98.05825705,161.17,161.16,5.23382485]
[1754152257338,98.75825705,161.17,161.16,5.23382485]
[1754152258900,98.05825705,161.17,161.16,5.23382485]
[1754152259505,98.75825705,161.17,161.16,5.23382485]
[1754152260503,98.05825705,161.17,161.16,5.23382485]
[1754152261019,98.72825705,161.17,161.16,5.23382485]
[1754152261629,102.78962233,161.17,161.16,5.23382485]
[1754152263316,111.94743297,161.17,161.16,5.23382485]
[1754152263714,16.78468397,161.16,161.14,0.06]
[1754152263920,76.13962233,161.15,161.14,0.06]
[1754152264135,76.80962233,161.15,161.14,0.06]
[1754152264314,85.96743297,161.15,161.14,0.06]
[1754152265209,42.78468397,161.11,161.03,0.54]
[1754152265410,10.81357308,161.06,161.03,0.54]
[1754152265640,44.48,161.05,161.03,0.54]
[1754152265834,44.48,161.04,161.03,0.54]
[1754152266441,44.48,161.04,161.01,0.54]
[1754152266625,44.48,161.04,161.02,0.54]
[1754152266825,16.78468397,161.07,161.03,0.54]
[1754152266826,27.59825705,161.07,161.03,0.54]
[1754152267032,44.48,161.06,161.02,10.81357308]
[1754152267216,27.59825705,161.05,161.01,10.81357308]
[1754152267423,44.48,161.04,161.01,0.54]
[1754152267622,44.48,161.04,160.99,0.1]
[1754152267820,55.29357308,161.04,161.0,11.35357308]
[1754152268118,55.29357308,161.04,160.99,0.1]
[1754152268119,10.81357308,161.03,160.99,0.1]
[1754152268322,44.48,161.02,160.99,0.1]
[1754152268538,12.45365593,161.1,161.01,10.81357308]
[1754152268844,44.5,161.09,161.07,10.81357308]
[1754152269044,44.5,161.09,161.08,11.35357308]
[1754152269359,81.98357308,161.09,161.02,0.54]
[1754152269530,10.81357308,161.03,160.99,0.1]
[1754152269724,36.81357308,161.0,160.99,0.1]
[1754152269918,81.43357308,161.0,160.99,0.1]
[1754152270111,70.62,161.0,160.99,0.1]
[1754152270614,81.43357308,161.0,160.99,0.1]
[1754152270855,82.10357308,161.0,160.99,0.1]
[1754152271341,26.0,161.0,160.99,0.1]
[1754152271548,70.66,161.0,160.99,0.1]
[1754152271932,9.15781064,161.08,160.99,11.45357308]
[1754152272118,9.15781064,161.08,161.03,10.81357308]
[1754152272324,9.15781064,161.08,161.0,0.54]
[1754152272325,19.35730062,161.11,161.04,0.54]
[1754152272521,44.68,161.1,161.07,10.81357308]
[1754152272743,44.68,161.1,161.04,0.54]
[1754152272949,3.23932946,161.1,161.09,10.81357308]
[1754152273145,3.23932946,161.1,161.09,11.35357308]
[1754152273350,8.54372754,161.11,161.09,11.35357308]
[1754152273517,8.54372754,161.11,161.1,11.35357308]
[1754152273933,8.54372754,161.11,161.0,20.81357308]
[1754152273934,8.54372754,161.11,161.07,0.54]
[1754152274233,44.74,161.1,161.08,0.54]
[1754152274432,8.54372754,161.11,161.09,11.35357308]
[1754152274645,8.54372754,161.11,161.06,16.78468397]
[1754152274646,14.73220128,161.2,161.1,38.95183013]
[1754152274819,44.78,161.19,161.15,10.81357308]
[1754152275018,3.23890783,161.18,161.15,10.81357308]
[1754152275247,3.23890783,161.18,161.16,10.81357308]
[1754152275419,3.23890783,161.18,161.1,27.59825705]
[1754152275620,3.23890783,161.18,161.17,10.81357308]
[1754152275820,44.78,161.2,161.17,10.81357308]
[1754152276048,44.78,161.2,161.19,10.81357308]
[1754152277437,3.23790839,161.22,161.19,10.81357308]
[1754152277624,44.78,161.21,161.2,10.81357308]
[1754152277827,44.78,161.21,161.13,16.78468397]
[1754152278025,44.78,161.21,161.2,10.81357308]
[1754152278927,44.78,161.21,161.19,10.81357308]
[1754152279532,0.67,161.2,161.14,16.78468397]
[1754152279732,0.67,161.2,161.13,26.0]
[1754152279733,11.48357308,161.2,161.16,10.81357308]
[1754152279932,11.48357308,161.2,161.12,16.78468397]
[1754152279933,26.0,161.18,161.15,10.81357308]
[1754152280253,44.76,161.17,161.16,10.81357308]
[1754152280835,44.76,161.17,161.12,16.78468397]
[1754152281155,44.76,161.17,161.15,10.81357308]
[1754152281523,0.67,161.16,161.12,10.81357308]
[1754152281730,0.67,161.16,161.13,10.81357308]
[1754152282748,26.0,161.13,161.1,10.81357308]
[1754152282953,44.74,161.12,161.1,10.81357308]
[1754152283150,44.74,161.12,161.0,65.55357308]
[1754152283151,45.41,161.12,161.09,10.81357308]
[1754152283838,0.67,161.11,161.09,10.81357308]
[1754152284234,44.74,161.12,161.09,10.81357308]
[1754152284437,9.15781064,161.17,161.03,16.78468397]
[1754152284438,9.82781064,161.17,161.11,10.81357308]
[1754152284633,26.0,161.16,161.14,10.81357308]
[1754152284838,0.67,161.17,161.08,16.78468397]
[1754152284839,0.67,161.17,161.15,10.81357308]
[1754152285036,44.76,161.16,161.15,10.81357308]
[1754152285650,44.76,161.16,161.11,0.06]
[1754152285651,45.43,161.16,161.11,0.06]
[1754152285850,0.67,161.15,161.12,10.81357308]
[1754152286057,55.57357308,161.16,161.12,10.81357308]
[1754152286352,45.43,161.16,161.13,10.81357308]
[1754152286735,0.67,161.15,161.13,10.81357308]
[1754152287265,44.76,161.16,161.11,0.06]
[1754152287266,44.76,161.16,161.14,10.81357308]
[1754152287470,44.76,161.16,161.15,10.81357308]
[1754152287633,44.76,161.16,161.14,10.81357308]
[1754152287832,45.43,161.16,161.14,10.81357308]
[1754152288151,11.48357308,161.15,161.11,0.06]
[1754152288330,10.81357308,161.14,161.11,0.06]
[1754152288656,55.61357308,161.13,161.11,0.06]
[1754152288957,10.81357308,161.12,161.11,0.06]
[1754152289158,11.48357308,161.12,161.11,0.06]
[1754152289336,0.67,161.12,161.11,0.06]
[1754152289535,11.48357308,161.12,161.11,0.06]
[1754152290150,70.8,161.12,161.11,0.06]
[1754152290352,82.28357308,161.12,161.11,0.06]
[1754152290758,82.28357308,161.12,161.06,10.81357308]
[1754152290976,0.71,161.11,161.02,16.78468397]
[1754152291135,10.81357308,161.1,161.06,10.81357308]
[1754152291330,45.53,161.09,161.06,10.81357308]
[1754152291556,0.71,161.08,161.06,10.81357308]
[1754152291862,44.82,161.09,161.06,10.81357308]
[1754152292066,45.53,161.09,161.06,10.81357308]
[1754152292359,44.82,161.09,161.08,10.81357308]
[1754152292564,44.82,161.09,161.07,10.81357308]
[1754152292750,44.82,161.09,161.0,27.59825705]
[1754152292751,0.71,161.08,161.05,10.81357308]
[1754152293541,0.71,161.08,161.06,10.81357308]
[1754152294155,11.52357308,161.07,160.98,0.06]
[1754152294357,44.8,161.06,160.98,0.06]
[1754152294662,44.8,161.06,161.02,10.81357308]
[1754152294663,45.51,161.06,161.02,10.81357308]
[1754152294871,11.52357308,161.05,161.0,10.81357308]
[1754152295042,11.52357308,161.05,160.97,0.06]
[1754152295043,0.71,161.04,160.97,0.06]
[1754152295235,56.34357308,161.03,160.98,10.81357308]
[1754152295752,0.71,161.02,160.98,10.81357308]
[1754152295945,11.52357308,161.01,160.94,16.884684]
[1754152296144,81.63357308,161.0,160.95,10.81357308]
[1754152296362,81.63357308,161.0,160.94,16.884684]
[1754152296363,82.34357308,161.0,160.94,16.884684]
[1754152296549,82.34357308,161.0,160.93,8.79175655]
[1754152296550,10.81357308,160.95,160.93,7.35175655]
[1754152296760,55.65357308,160.94,160.93,7.35175655]
[1754152297067,67.75325933,160.94,160.93,7.35175655]
[1754152297666,63.66743109,160.94,160.93,7.35175655]
[1754152297863,56.36357308,160.94,160.93,7.35175655]
[1754152298064,60.4502893,160.94,160.93,7.35175655]
[1754152298265,15.6102893,160.94,160.93,7.35175655]
[1754152298664,56.46357308,160.94,160.93,7.35175655]
[1754152298865,60.54857302,160.94,160.93,7.35175655]
[1754152299055,4.08499994,160.94,160.93,7.35175655]
[1754152299254,56.46357308,160.94,160.93,7.35175655]
[1754152299475,55.75357308,160.94,160.93,7.35175655]
[1754152299645,56.46357308,160.94,160.93,7.35175655]
[1754152299965,55.75357308,160.94,160.93,7.35175655]
[1754152300179,44.98,160.94,160.93,7.35175655]
[1754152300344,44.98,160.94,160.93,18.82532963]
[1754152300858,44.98,160.94,160.93,7.35175655]
[1754152301176,44.98,160.94,160.93,18.82532963]
[1754152301350,44.96,160.97,160.93,18.82532963]
[1754152301541,44.96,160.96,160.93,7.35175655]
[1754152301746,44.96,160.95,160.93,18.82532963]
[1754152301958,44.96,160.95,160.93,7.35175655]
[1754152302274,10.81357308,160.94,160.93,7.35175655]
[1754152302475,11.52357308,160.94,160.93,7.35175655]
[1754152302649,44.87533008,160.94,160.93,7.35175655]
[1754152303966,44.16533008,160.94,160.93,7.35175655]
[1754152304570,44.96,160.94,160.93,7.35175655]
[1754152305475,44.96,160.94,160.93,8.01175655]
[1754152305682,3.24122108,161.01,160.93,18.82532963]
[1754152305885,44.98,161.0,160.96,10.81357308]
[1754152306080,14.05479408,161.01,160.97,11.47357308]
[1754152306291,44.98,161.0,160.99,10.81357308]
[1754152306464,44.98,161.0,160.99,11.47357308]
[1754152307082,44.98,161.0,160.99,10.81357308]
[1754152307453,21.62714608,161.07,160.99,11.47357308]
[1754152307650,75.05200492,161.06,161.0,0.66]
[1754152307878,3.23795855,161.04,161.01,10.81357308]